fUST/lending_fUST_20250606
["ID","MTS","AMOUNT","RATE_DAILY","PERIOD"]
[364723467,1749220247487,-383.66,0.00019726,2]
[364723469,1749220247496,-440.0,0.00019726,2]
[364723471,1749220247505,-430.0,0.00019726,2]
[364723473,1749220247515,-440.0,0.00019726,2]
[364723475,1749220247524,-430.0,0.00019726,2]
[364723477,1749220247534,-430.0,0.00019726,2]
[364723480,1749220247544,-440.0,0.00019726,2]
[364723482,1749220247553,-440.0,0.00019726,2]
[364723483,1749220247562,-440.0,0.00019726,2]
[364723486,1749220247572,-430.0,0.00019726,2]
[364723487,1749220247581,-430.0,0.00019726,2]
[364723490,1749220247590,-440.0,0.00019726,2]
[364723492,1749220247601,-440.0,0.00019726,2]
[364723494,1749220247610,-440.0,0.00019726,2]
[364723496,1749220247619,-440.0,0.00019726,2]
[364723498,1749220247628,-440.0,0.00019726,2]
[364723500,1749220247638,-913.64,0.00019726,2]
[364723502,1749220247648,-828.08,0.00019726,2]
[364723504,1749220247658,-440.0,0.00019726,2]
[364723506,1749220247667,-440.0,0.00019726,2]
[364723508,1749220247678,-440.0,0.00019726,2]
[364723510,1749220247688,-1086.4,0.00019726,2]
[364723512,1749220247697,-253.85864678,0.00019726,2]
[364723514,1749220247706,-420.0,0.00019726,2]
[364723516,1749220247715,-440.0,0.00019726,2]
[364723518,1749220247724,-440.0,0.00019726,2]
[364723520,1749220247733,-410.0,0.00019726,2]
[364723522,1749220247743,-440.0,0.00019726,2]
[364723524,1749220247752,-410.0,0.00019726,2]
[364723526,1749220247761,-400.0,0.00019726,2]
[364723528,1749220247771,-502.03109554,0.00019726,2]
[364723530,1749220247780,-430.0,0.00019726,2]
[364723532,1749220247789,-400.0,0.00019726,2]
[364723534,1749220247798,-410.0,0.00019726,2]
[364723536,1749220247808,-440.0,0.00019726,2]
[364723538,1749220247817,-440.0,0.00019726,2]
[364723540,1749220247826,-440.0,0.00019726,2]
[364723542,1749220247835,-440.0,0.00019726,2]
[364723544,1749220247845,-430.0,0.00019726,2]
[364723546,1749220247855,-430.0,0.00019726,2]
[364723548,1749220247864,-440.0,0.00019726,2]
[364723550,1749220247873,-430.0,0.00019726,2]
[364723552,1749220247883,-440.0,0.00019726,2]
[364723554,1749220247893,-440.0,0.00019726,2]
[364723556,1749220247902,-430.0,0.00019726,2]
[364723558,1749220247913,-440.0,0.00019726,2]
[364723560,1749220247923,-440.0,0.00019726,2]
[364723562,1749220247932,-440.0,0.00019726,2]
[364723564,1749220247941,-440.0,0.00019726,2]
[364723566,1749220247950,-440.0,0.00019726,2]
[364723568,1749220247960,-440.0,0.00019726,2]
[364723570,1749220247969,-430.0,0.00019726,2]
[364723572,1749220247978,-440.0,0.00019726,2]
[364723574,1749220247988,-547.90146351,0.00019726,2]
[364723576,1749220247997,-987.79,0.00019726,2]
[364723578,1749220248006,-440.0,0.00019726,2]
[364723580,1749220248016,-1765.1,0.00019726,2]
[364723582,1749220248025,-410.0,0.00019726,2]
[364723584,1749220248035,-440.0,0.00019726,2]
[364723586,1749220248044,-440.0,0.00019726,2]
[364723588,1749220248054,-440.0,0.00019726,2]
[364723590,1749220248063,-440.0,0.00019726,2]
[364723592,1749220248072,-430.0,0.00019726,2]
[364723594,1749220248081,-410.0,0.00019726,2]
[364723596,1749220248090,-440.0,0.00019726,2]
[364723598,1749220248100,-420.0,0.00019726,2]
[364723600,1749220248109,-440.0,0.00019726,2]
[364723602,1749220248118,-440.0,0.00019726,2]
[364723604,1749220248127,-440.0,0.00019726,2]
[364723606,1749220248137,-430.0,0.00019726,2]
[364723608,1749220248146,-440.0,0.00019726,2]
[364723610,1749220248155,-440.0,0.00019726,2]
[364723612,1749220248164,-440.0,0.00019726,2]
[364723614,1749220248174,-440.0,0.00019726,2]
[364723616,1749220248183,-430.0,0.00019726,2]
[364723618,1749220248192,-411.06734168,0.00019726,2]
[364723620,1749220248202,-420.0,0.00019726,2]
[364723622,1749220248211,-440.0,0.00019726,2]
[364723624,1749220248220,-440.0,0.00019726,2]
[364723626,1749220248229,-506.73,0.00019726,2]
[364723628,1749220248238,-440.0,0.00019726,2]
[364723630,1749220248247,-440.0,0.00019726,2]
[364723632,1749220248256,-515.58,0.00019726,2]
[364723634,1749220248266,-440.0,0.00019726,2]
[364723636,1749220248275,-440.0,0.00019726,2]
[364723638,1749220248285,-440.0,0.00019726,2]
[364723640,1749220248294,-440.0,0.00019726,2]
[364723643,1749220248304,-440.0,0.00019726,2]
[364723645,1749220248313,-440.0,0.00019726,2]
[364723647,1749220248322,-430.0,0.00019726,2]
[364723649,1749220248331,-440.0,0.00019726,2]
[364723651,1749220248340,-440.0,0.00019726,2]
[364723653,1749220248349,-574.52577775,0.00019726,2]
[364723654,1749220248358,-1801.78,0.00019726,2]
[364723657,1749220248369,-430.0,0.00019726,2]
[364723659,1749220248381,-440.0,0.00019726,2]
[364723661,1749220248391,-440.0,0.00019726,2]
[364723663,1749220248400,-191.56858156,0.00019726,2]
[364723665,1749220248410,-440.0,0.00019726,2]
[364723667,1749220248420,-440.0,0.00019726,2]
[364723669,1749220248429,-440.0,0.00019726,2]
[364723671,1749220248439,-440.0,0.00019726,2]
[364723673,1749220248450,-440.0,0.00019726,2]
[364723674,1749220248461,-440.0,0.00019726,2]
[364723676,1749220248471,-715.44,0.00019726,2]
[364723678,1749220248480,-1073.85,0.00019726,2]
[364723680,1749220248489,-911.83,0.00019726,2]
[364723682,1749220248498,-381.82620392,0.00019726,2]
[364723684,1749220248507,-440.0,0.00019726,2]
[364723686,1749220248516,-440.0,0.00019726,2]
[364723688,1749220248525,-440.0,0.00019726,2]
[364723690,1749220248534,-440.0,0.00019726,2]
[364723692,1749220248544,-440.0,0.00019726,2]
[364723694,1749220248553,-440.0,0.00019726,2]
[364723696,1749220248562,-440.0,0.00019726,2]
[364723699,1749220248572,-440.0,0.00019726,2]
[364723701,1749220248581,-430.0,0.00019726,2]
[364723703,1749220248590,-440.0,0.00019726,2]
[364723705,1749220248599,-440.0,0.00019726,2]
[364723706,1749220248608,-440.0,0.00019726,2]
[364723709,1749220248618,-483.93835613,0.00019726,2]
[364723711,1749220248627,-440.0,0.00019726,2]
[364723713,1749220248636,-420.0,0.00019726,2]
[364723726,1749220248754,-500.8,0.00019726,2]
[364723729,1749220248764,-440.0,0.00019726,2]
[364723731,1749220248772,-370.172726,0.00019726,2]
[364723733,1749220248782,-1133.7,0.00019726,2]
[364723735,1749220248791,-430.0,0.00019726,2]
[364723737,1749220248800,-440.0,0.00019726,2]
[364723739,1749220248809,-440.0,0.00019726,2]
[364723741,1749220248818,-1638.58,0.00019726,2]
[364723742,1749220248827,-430.0,0.00019726,2]
[364723745,1749220248836,-420.0,0.00019726,2]
[364723747,1749220248846,-528.95372577,0.00019726,2]
[364723749,1749220248855,-430.0,0.00019726,2]
[364723751,1749220248864,-440.0,0.00019726,2]
[364723753,1749220248873,-440.0,0.00019726,2]
[364723755,1749220248883,-500.0,0.00019726,2]
[364723757,1749220248892,-1171.51239176,0.000199,2]
[364723759,1749220248901,-512.79628993,0.00019916,2]
[364723761,1749220248911,-3000.0,0.0002,2]
[364723763,1749220248920,-440.0,0.0002,2]
[364723765,1749220248937,-420.0,0.0002,2]
[364723767,1749220248946,-440.0,0.0002,2]
[364723769,1749220248955,-420.0,0.0002,2]
[364723771,1749220248965,-440.0,0.0002,2]
[364723773,1749220248974,-473.56363254,0.0002,2]
[364723775,1749220248983,-410.0,0.0002,2]
[364723778,1749220248992,-420.0,0.0002,2]
[364723779,1749220249002,-420.0,0.0002,2]
[364723782,1749220249012,-400.0,0.0002,2]
[364723784,1749220249021,-440.0,0.0002,2]
[364723786,1749220249030,-411.31524347,0.0002,2]
[364723788,1749220249039,-440.0,0.0002,2]
[364723790,1749220249048,-420.0,0.0002,2]
[364723792,1749220249057,-400.0,0.0002,2]
[364723794,1749220249065,-413.28481233,0.0002,2]
[364723796,1749220249074,-440.0,0.0002,2]
[364723798,1749220249083,-495.21136589,0.0002,2]
[364723800,1749220249093,-470.48619459,0.0002,2]
[364723802,1749220249102,-440.0,0.0002,2]
[364723804,1749220249111,-440.0,0.0002,2]
[364723806,1749220249120,-440.0,0.0002,2]
[364723807,1749220249129,-250.47288694,0.0002,2]
[364723810,1749220249138,-440.0,0.0002,2]
[364723811,1749220249148,-433.38893907,0.0002,2]
[364723813,1749220249159,-440.0,0.0002,2]
[364723815,1749220249168,-432.64877443,0.0002,2]
[364723817,1749220249177,-430.0,0.0002,2]
[364723819,1749220249187,-430.0,0.0002,2]
[364723821,1749220249196,-440.0,0.0002,2]
[364723823,1749220249206,-440.0,0.0002,2]
[364723825,1749220249215,-420.0,0.0002,2]
[364723827,1749220249224,-440.0,0.0002,2]
[364723829,1749220249234,-440.0,0.0002,2]
[364723831,1749220249243,-440.0,0.0002,2]
[364723833,1749220249253,-423.0692736,0.0002,2]
[364723835,1749220249262,-357.14965469,0.0002,2]
[364723837,1749220249272,-439.93233988,0.0002,2]
[364723839,1749220249281,-440.0,0.0002,2]
[364723841,1749220249291,-440.0,0.0002,2]
[364723843,1749220249300,-440.0,0.0002,2]
[364723845,1749220249310,-440.0,0.0002,2]
[364723847,1749220249319,-440.0,0.0002,2]
[364723849,1749220249329,-420.0,0.0002,2]
[364723851,1749220249338,-440.0,0.0002,2]
[364723853,1749220249347,-440.0,0.0002,2]
[364723855,1749220249356,-409.96172501,0.0002,2]
[364723857,1749220249368,-440.0,0.0002,2]
[364723859,1749220249379,-410.0,0.0002,2]
[364723861,1749220249389,-410.0,0.0002,2]
[364723863,1749220249399,-380.0,0.0002,2]
[364723865,1749220249410,-440.0,0.0002,2]
[364723867,1749220249421,-913.64,0.0002,2]
[364723869,1749220249431,-828.08,0.0002,2]
[364723871,1749220249441,-400.0,0.0002,2]
[364723873,1749220249450,-532.53,0.0002,2]
[364723875,1749220249461,-440.0,0.0002,2]
[364723877,1749220249471,-1086.4,0.0002,2]
[364723879,1749220249480,-440.0,0.0002,2]
[364723881,1749220249489,-430.0,0.0002,2]
[364723882,1749220249499,-400.0,0.0002,2]
[364723884,1749220249508,-390.0,0.0002,2]
[364723886,1749220249517,-440.0,0.0002,2]
[364723888,1749220249526,-440.0,0.0002,2]
[364723890,1749220249536,-420.0,0.0002,2]
[364723892,1749220249545,-430.0,0.0002,2]
[364723894,1749220249555,-440.0,0.0002,2]
[364723896,1749220249564,-440.0,0.0002,2]
[364723898,1749220249573,-440.0,0.0002,2]
[364723900,1749220249582,-430.0,0.0002,2]
[364723902,1749220249591,-360.0,0.0002,2]
[364723903,1749220249600,-410.34661337,0.0002,2]
[364723905,1749220249610,-440.0,0.0002,2]
[364723907,1749220249619,-440.0,0.0002,2]
[364723909,1749220249628,-987.79,0.0002,2]
[364723911,1749220249637,-440.0,0.0002,2]
[364723913,1749220249646,-1765.1,0.0002,2]
[364723915,1749220249656,-440.0,0.0002,2]
[364723917,1749220249666,-440.0,0.0002,2]
[364723919,1749220249675,-440.0,0.0002,2]
[364723921,1749220249685,-440.0,0.0002,2]
[364723923,1749220249694,-440.0,0.0002,2]
[364723925,1749220249703,-440.0,0.0002,2]
[364723927,1749220249712,-440.0,0.0002,2]
[364723929,1749220249722,-440.0,0.0002,2]
[364723931,1749220249731,-267.03578636,0.0002,2]
[364723933,1749220249740,-440.0,0.0002,2]
[364723935,1749220249750,-440.0,0.0002,2]
[364723937,1749220249759,-440.0,0.0002,2]
[364723939,1749220249768,-440.0,0.0002,2]
[364723941,1749220249777,-440.0,0.0002,2]
[364723943,1749220249786,-506.73,0.0002,2]
[364723945,1749220249796,-440.0,0.0002,2]
[364723947,1749220249805,-440.0,0.0002,2]
[364723949,1749220249814,-515.58,0.0002,2]
[364723951,1749220249823,-340.18798946,0.0002,2]
[364723953,1749220249832,-440.0,0.0002,2]
[364723955,1749220249841,-440.0,0.0002,2]
[364723957,1749220249850,-440.0,0.0002,2]
[364723959,1749220249859,-581.17,0.0002,2]
[364723960,1749220249868,-380.0,0.0002,2]
[364723962,1749220249877,-1801.78,0.0002,2]
[364723964,1749220249886,-440.0,0.0002,2]
[364723966,1749220249895,-440.0,0.0002,2]
[364723968,1749220249904,-440.0,0.0002,2]
[364723970,1749220249915,-440.0,0.0002,2]
[364723972,1749220249924,-440.0,0.0002,2]
[364723974,1749220249946,-400.0,0.0002,2]
[364723976,1749220249955,-440.0,0.0002,2]
[364723978,1749220249965,-715.44,0.0002,2]
[364723980,1749220249974,-1073.85,0.0002,2]
[364723982,1749220249983,-911.83,0.0002,2]
[364723984,1749220249992,-440.0,0.0002,2]
[364723986,1749220250001,-151.57878815,0.0002,2]
[364723988,1749220250010,-452.37,0.0002,2]
[364723990,1749220250019,-440.0,0.0002,2]
[364723992,1749220250029,-440.0,0.0002,2]
[364723994,1749220250038,-440.0,0.0002,2]
[364723996,1749220250047,-440.0,0.0002,2]
[364723998,1749220250056,-440.0,0.0002,2]
[364724000,1749220250066,-384.8170912,0.0002,2]
[364724002,1749220250075,-423.42310226,0.0002,2]
[364724004,1749220250084,-440.0,0.0002,2]
[364724006,1749220250093,-1133.7,0.0002,2]
[364724008,1749220250103,-440.0,0.0002,2]
[364724010,1749220250111,-400.0,0.0002,2]
[364724012,1749220250121,-1638.58,0.0002,2]
[364724014,1749220250130,-440.0,0.0002,2]
[364724016,1749220250139,-440.0,0.0002,2]
[364724018,1749220250148,-633.51723044,0.00020021,2]
[364724020,1749220250159,-1171.51239175,0.00020072,2]
[364724022,1749220250168,-232.283,0.00020111,2]
[364724024,1749220250178,-239.753286,0.00020187,2]
[364724026,1749220250190,-1171.51239175,0.00020245,2]
[364724028,1749220250199,-406.28705695,0.00020273,2]
[364724030,1749220250208,-440.0,0.00020273,2]
[364724032,1749220250217,-447.13160177,0.00020273,2]
[364724034,1749220250226,-440.0,0.00020273,2]
[364724036,1749220250236,-395.4643969,0.00020273,2]
[364724037,1749220250245,-440.0,0.00020273,2]
[364724039,1749220250255,-440.0,0.00020273,2]
[364724041,1749220250264,-440.0,0.00020273,2]
[364724043,1749220250274,-440.0,0.00020273,2]
[364724045,1749220250284,-440.0,0.00020273,2]
[364724047,1749220250293,-440.0,0.00020273,2]
[364724049,1749220250303,-440.0,0.00020273,2]
[364724051,1749220250312,-350.0,0.00020273,2]
[364724053,1749220250322,-400.0,0.00020273,2]
[364724055,1749220250332,-575.46,0.00020273,2]
[364724057,1749220250341,-440.0,0.00020273,2]
[364724059,1749220250351,-438.24181984,0.00020273,2]
[364724061,1749220250360,-440.0,0.00020273,2]
[364724063,1749220250371,-440.0,0.00020273,2]
[364724065,1749220250381,-440.0,0.00020273,2]
[364724067,1749220250390,-913.64,0.00020273,2]
[364724069,1749220250399,-828.08,0.00020273,2]
[364724071,1749220250409,-440.0,0.00020273,2]
[364724073,1749220250419,-1086.4,0.00020273,2]
[364724075,1749220250429,-440.0,0.00020273,2]
[364724077,1749220250438,-344.22252767,0.00020273,2]
[364724078,1749220250450,-440.0,0.00020273,2]
[364724080,1749220250460,-440.0,0.00020273,2]
[364724082,1749220250470,-440.0,0.00020273,2]
[364724084,1749220250479,-345.89828228,0.00020273,2]
[364724086,1749220250489,-440.0,0.00020273,2]
[364724088,1749220250499,-175.67092659,0.00020273,2]
[364724090,1749220250508,-987.79,0.00020273,2]
[364724092,1749220250517,-440.0,0.00020273,2]
[364724094,1749220250527,-1765.1,0.00020273,2]
[364724096,1749220250537,-440.0,0.00020273,2]
[364724098,1749220250546,-440.0,0.00020273,2]
[364724100,1749220250556,-440.0,0.00020273,2]
[364724102,1749220250565,-440.0,0.00020273,2]
[364724104,1749220250575,-440.0,0.00020273,2]
[364724106,1749220250585,-440.0,0.00020273,2]
[364724108,1749220250595,-440.0,0.00020273,2]
[364724110,1749220250605,-582.62763877,0.00020273,2]
[364724112,1749220250614,-440.0,0.00020273,2]
[364724114,1749220250623,-430.0,0.00020273,2]
[364724116,1749220250633,-506.73,0.00020273,2]
[364724118,1749220250643,-440.0,0.00020273,2]
[364724120,1749220250652,-440.0,0.00020273,2]
[364724122,1749220250662,-515.58,0.00020273,2]
[364724124,1749220250671,-430.0,0.00020273,2]
[364724126,1749220250681,-164.15,0.00020273,2]
[364724128,1749220250690,-440.0,0.00020273,2]
[364724130,1749220250699,-1801.78,0.00020273,2]
[364724131,1749220250708,-440.0,0.00020273,2]
[364724133,1749220250717,-440.0,0.00020273,2]
[364724135,1749220250726,-514.48459367,0.00020273,2]
[364724137,1749220250735,-440.0,0.00020273,2]
[364724139,1749220250745,-440.0,0.00020273,2]
[364724141,1749220250754,-440.0,0.00020273,2]
[364724143,1749220250763,-715.44,0.00020273,2]
[364724145,1749220250773,-1073.85,0.00020273,2]
[364724147,1749220250782,-911.83,0.00020273,2]
[364724149,1749220250792,-193.37,0.00020273,2]
[364724151,1749220250801,-440.0,0.00020273,2]
[364724153,1749220250810,-440.0,0.00020273,2]
[364724155,1749220250819,-440.0,0.00020273,2]
[364724157,1749220250830,-440.0,0.00020273,2]
[364724159,1749220250839,-440.0,0.00020273,2]
[364724161,1749220250848,-440.0,0.00020273,2]
[364724163,1749220250857,-1133.7,0.00020273,2]
[364724165,1749220250867,-440.0,0.00020273,2]
[364724167,1749220250876,-1638.58,0.00020273,2]
[364724169,1749220250884,-440.0,0.00020273,2]
[364724171,1749220250894,-440.0,0.00020273,2]
[364724173,1749220250903,-1171.51239175,0.00020417,3]
[364724175,1749220250914,-500.0,0.00020446,2]
[364724177,1749220250923,-229.52673067,0.00020511,2]
[364724179,1749220250933,-160.0,0.00020511,2]
[364724181,1749220250942,-160.0,0.00020511,2]
[364724182,1749220250951,-834.50537533,0.00020511,2]
[364724184,1749220250961,-160.0,0.00020511,2]
[364724186,1749220250970,-423.83542519,0.00020511,2]
[364724188,1749220250979,-160.0,0.00020511,2]
[364724190,1749220250988,-212.976918,0.00020511,2]
[364724202,1749220251094,-160.0,0.00020511,2]
[364724204,1749220251103,-842.5625,0.00020512,2]
[364724206,1749220251113,-11849.89752062,0.00020512,2]
[364724208,1749220251121,-160.0,0.00020512,2]
[364724210,1749220251130,-751.74,0.00020538,3]
[364724212,1749220251139,-751.74,0.00020538,3]
[364724214,1749220251148,-271.01586478,0.00020547,2]
[364724216,1749220251158,-417.35330721,0.00020547,2]
[364724218,1749220251168,-440.0,0.00020547,2]
[364724220,1749220251178,-500.0,0.00020547,2]
[364724222,1749220251187,-320.0,0.00020547,2]
[364724224,1749220251196,-440.0,0.00020547,2]
[364724226,1749220251205,-581.83222827,0.00020547,2]
[364724228,1749220251214,-440.0,0.00020547,2]
[364724230,1749220251224,-440.0,0.00020547,2]
[364724232,1749220251233,-400.0,0.00020547,2]
[364724234,1749220251242,-440.0,0.00020547,2]
[364724235,1749220251252,-440.0,0.00020547,2]
[364724237,1749220251261,-440.0,0.00020547,2]
[364724239,1749220251271,-430.0,0.00020547,2]
[364724241,1749220251280,-913.64,0.00020547,2]
[364724243,1749220251289,-828.08,0.00020547,2]
[364724245,1749220251299,-440.0,0.00020547,2]
[364724247,1749220251308,-1086.4,0.00020547,2]
[364724249,1749220251317,-440.0,0.00020547,2]
[364724251,1749220251327,-440.0,0.00020547,2]
[364724253,1749220251336,-300.0,0.00020547,2]
[364724255,1749220251346,-440.0,0.00020547,2]
[364724257,1749220251355,-987.79,0.00020547,2]
[364724259,1749220251366,-440.0,0.00020547,2]
[364724261,1749220251379,-1765.1,0.00020547,2]
[364724263,1749220251389,-313.62160747,0.00020547,2]
[364724265,1749220251399,-440.0,0.00020547,2]
[364724267,1749220251408,-440.0,0.00020547,2]
[364724268,1749220251418,-440.0,0.00020547,2]
[364724269,1749220251427,-440.0,0.00020547,2]
[364724270,1749220251437,-440.0,0.00020547,2]
[364724271,1749220251446,-440.0,0.00020547,2]
[364724272,1749220251456,-440.0,0.00020547,2]
[364724273,1749220251466,-506.73,0.00020547,2]
[364724274,1749220251475,-440.0,0.00020547,2]
[364724275,1749220251484,-440.0,0.00020547,2]
[364724276,1749220251493,-515.58,0.00020547,2]
[364724277,1749220251503,-440.0,0.00020547,2]
[364724278,1749220251512,-1801.78,0.00020547,2]
[364724279,1749220251521,-440.0,0.00020547,2]
[364724280,1749220251530,-171.07110861,0.00020547,2]
[364724281,1749220251539,-400.0,0.00020547,2]
[364724282,1749220251548,-440.0,0.00020547,2]
[364724283,1749220251557,-715.44,0.00020547,2]
[364724284,1749220251566,-1073.85,0.00020547,2]
[364724285,1749220251575,-911.83,0.00020547,2]
[364724286,1749220251584,-440.0,0.00020547,2]
[364724287,1749220251593,-440.0,0.00020547,2]
[364724288,1749220251603,-440.0,0.00020547,2]
[364724289,1749220251613,-440.0,0.00020547,2]
[364724290,1749220251622,-584.7453477,0.00020547,2]
[364724291,1749220251631,-440.0,0.00020547,2]
[364724292,1749220251640,-1133.7,0.00020547,2]
[364724293,1749220251649,-440.0,0.00020547,2]
[364724294,1749220251658,-1638.58,0.00020547,2]
[364724295,1749220251669,-390.0,0.00020547,2]
[364724296,1749220251678,-440.0,0.00020547,2]
[364724297,1749220251687,-500.0,0.00020564,2]
[364724299,1749220251695,-150.0,0.00020575,2]
[364724301,1749220251705,-1171.51239175,0.0002059,3]
[364724303,1749220251714,-447.25,0.000206,2]
[364724305,1749220251723,-915.24275948,0.00020626,2]
[364724307,1749220251732,-500.0,0.00020664,2]
[364724309,1749220251741,-370.0,0.00020709,2]
[364724311,1749220251750,-420.0,0.00020709,2]
[364724313,1749220251759,-1171.51239175,0.00020762,3]
[364724315,1749220251768,-1680.0,0.0002081,2]
[364724316,1749220251778,-501.26909443,0.00020821,2]
[364724318,1749220251787,-440.0,0.00020821,2]
[364724320,1749220251796,-440.0,0.00020821,2]
[364724322,1749220251805,-440.0,0.00020821,2]
[364724324,1749220251815,-439.86875441,0.00020821,2]
[364724326,1749220251824,-508.55095,0.00020821,2]
[364724328,1749220251834,-913.64,0.00020821,2]
[364724330,1749220251843,-828.08,0.00020821,2]
[364724332,1749220251852,-440.0,0.00020821,2]
[364724334,1749220251862,-1086.4,0.00020821,2]
[364724336,1749220251871,-440.0,0.00020821,2]
[364724338,1749220251880,-440.0,0.00020821,2]
[364724340,1749220251890,-440.0,0.00020821,2]
[364724342,1749220251899,-987.79,0.00020821,2]
[364724344,1749220251909,-440.0,0.00020821,2]
[364724346,1749220251919,-1765.1,0.00020821,2]
[364724348,1749220251928,-439.45407682,0.00020821,2]
[364724350,1749220251938,-440.0,0.00020821,2]
[364724352,1749220251947,-475.39368962,0.00020821,2]
[364724354,1749220251956,-440.0,0.00020821,2]
[364724356,1749220251965,-440.0,0.00020821,2]
[364724358,1749220251975,-400.0,0.00020821,2]
[364724360,1749220251984,-440.0,0.00020821,2]
[364724362,1749220251994,-506.73,0.00020821,2]
[364724364,1749220252003,-440.0,0.00020821,2]
[364724366,1749220252013,-440.0,0.00020821,2]
[364724368,1749220252022,-515.58,0.00020821,2]
[364724370,1749220252031,-379.88,0.00020821,2]
[364724372,1749220252041,-1801.78,0.00020821,2]
[364724374,1749220252051,-440.0,0.00020821,2]
[364724376,1749220252060,-440.0,0.00020821,2]
[364724378,1749220252070,-715.44,0.00020821,2]
[364724380,1749220252079,-1073.85,0.00020821,2]
[364724382,1749220252088,-911.83,0.00020821,2]
[364724384,1749220252098,-440.0,0.00020821,2]
[364724386,1749220252107,-440.0,0.00020821,2]
[364724388,1749220252117,-430.0,0.00020821,2]
[364724390,1749220252126,-223.09467385,0.00020821,2]
[364724392,1749220252136,-1133.7,0.00020821,2]
[364724394,1749220252145,-440.0,0.00020821,2]
[364724396,1749220252154,-1638.58,0.00020821,2]
[364724398,1749220252164,-440.0,0.00020821,2]
[364724400,1749220252173,-420.0,0.00020884,2]
[364724402,1749220252182,-1171.51239175,0.00020934,4]
[364724404,1749220252192,-167.2222613,0.00020995,2]
[364724406,1749220252201,-50789.14330085,0.00021,2]
[364724408,1749220252211,-412.3999775,0.00021095,3]
[364724410,1749220252220,-440.0,0.00021095,2]
[364724412,1749220252229,-440.0,0.00021095,2]
[364724414,1749220252239,-440.0,0.00021095,2]
[364724416,1749220252250,-913.64,0.00021095,2]
[364724418,1749220252259,-828.08,0.00021095,2]
[364724420,1749220252269,-440.0,0.00021095,2]
[364724422,1749220252278,-1086.4,0.00021095,2]
[364724424,1749220252289,-440.0,0.00021095,2]
[364724426,1749220252299,-440.0,0.00021095,2]
[364724428,1749220252309,-589.3319896,0.00021095,2]
[364724430,1749220252318,-987.79,0.00021095,2]
[364724432,1749220252327,-440.0,0.00021095,2]
[364724434,1749220252337,-1765.1,0.00021095,2]
[364724436,1749220252347,-440.0,0.00021095,2]
[364724438,1749220252356,-440.0,0.00021095,2]
[364724440,1749220252367,-440.0,0.00021095,2]
[364724442,1749220252380,-350.0,0.00021095,2]
[364724444,1749220252391,-506.73,0.00021095,2]
[364724446,1749220252401,-370.0,0.00021095,2]
[364724448,1749220252410,-440.0,0.00021095,2]
[364724450,1749220252420,-515.58,0.00021095,2]